bitfinex-derivatives/quotes_SOLF0:USTF0_20250630
["timestamp","ask_amount","ask_price","bid_price","bid_amount"]
[1751297319843,8.06318955,151.62,151.49,4.4109]
[1751297320034,4.5263,151.71,151.61,3.54200143]
[1751297320234,2.2598,151.71,151.63,3.54200143]
[1751297320441,6.5894,151.72,151.67,6.5913]
[1751297320645,3.54200143,151.73,151.64,34.9]
[1751297321048,10.13110143,151.73,151.67,6.5916]
[1751297321341,3.53887974,151.74,151.68,34.88]
[1751297321745,10.12777974,151.74,151.68,41.4707]
[1751297321947,3.53887974,151.74,151.68,34.88]
[1751297322141,4.5263,151.75,151.68,34.88]
[1751297322341,2.2598,151.75,151.68,38.41887974]
[1751297322537,1.14718971,151.83,151.7,3.53887974]
[1751297322737,1.14718971,151.83,151.69,2.2333]
[1751297322943,4.42199902,151.9,151.82,3.53887974]
[1751297323148,4.42199902,151.9,151.82,3.53118784]
[1751297323345,4.42199902,151.9,151.83,34.86]
[1751297323547,4.42199902,151.9,151.85,3.53035622]
[1751297323740,4.42199902,151.9,151.83,34.86]
[1751297323946,4.42199902,151.9,151.86,5.88171511]
[1751297324147,4.42199902,151.9,151.87,34.86]
[1751297325348,11.00369902,151.9,151.87,34.86]
[1751297326148,6.5825,151.88,151.87,34.86]
[1751297327248,10.30371413,151.9,151.84,34.84]
[1751297327447,4.42199902,151.9,151.84,34.84]
[1751297327651,6.5821,151.89,151.84,34.84]
[1751297327849,4.42199902,151.9,151.84,34.84]
[1751297328055,8.11121511,151.97,151.87,5.88171511]
[1751297328257,2.2295,151.97,151.88,34.84]
[1751297328450,4.2984,152.0,151.89,5.88171511]
[1751297328656,5.88171511,152.05,151.95,5.88171511]
[1751297328853,10.30371413,152.09,151.98,5.88171511]
[1751297329061,5.88171511,152.08,151.99,34.84]
[1751297329254,5.88171511,152.08,152.0,34.84]
[1751297329665,5.88171511,152.06,152.0,34.84]
[1751297329865,5.88171511,152.07,152.0,34.84]
[1751297330362,6.5738,152.08,152.01,12.45811511]
[1751297330758,6.5738,152.08,152.01,5.88171511]
[1751297330957,4.42199902,152.09,152.02,2.2093]
[1751297331358,1.14454859,152.2,152.07,5.88171511]
[1751297331562,4.5226,152.23,152.1,6.5729]
[1751297331858,34.82,152.26,152.17,5.88171511]
[1751297332064,34.82,152.26,152.1,730.96171511]
[1751297332065,6.5656,152.27,152.2,6.5682]
[1751297332260,5.88171511,152.3,152.19,35.64]
[1751297332454,5.88171511,152.28,152.19,35.64]
[1751297332653,4.3565,152.33,152.21,6.5678]
[1751297332654,6.5658,152.27,152.21,6.5678]
[1751297332860,4.42199902,152.29,152.22,5.88171511]
[1751297333062,25.54921511,152.5,152.28,5.88171511]
[1751297333266,35.6,152.55,152.38,5.84340899]
[1751297333558,596.8455,152.56,152.3,5.84340899]
[1751297333559,599.0348,152.56,152.37,41.44340899]
[1751297333763,1.14199455,152.54,152.38,35.6]
[1751297333956,9.76064258,152.57,152.42,9.76064258]
[1751297334159,6.5537,152.55,152.47,6.5566]
[1751297334364,37.14,152.54,152.41,9.76064258]
[1751297334562,4.3149,152.62,152.42,9.76064258]
[1751297334772,37.14,152.76,152.55,9.76064258]
[1751297335061,592.6,152.7,152.51,37.14]
[1751297335263,6.6135,152.68,152.52,37.14]
[1751297335463,9.76064258,152.63,152.5,38.72]
[1751297335770,10.96959902,152.69,152.5,38.72]
[1751297336067,6.6135,152.84,152.63,9.76064258]
[1751297336266,2.55409902,152.89,152.8,9.76064258]
[1751297336474,9.76064258,153.12,152.8,9.76064258]
[1751297336475,9.76064258,153.24,152.88,19.52128516]
[1751297336765,43.02,153.23,152.98,9.76064258]
[1751297337068,43.02,153.23,153.02,9.76064258]
[1751297337270,2.1236,153.26,153.11,9.76064258]
[1751297337466,9.76064258,153.19,153.05,43.02]
[1751297337672,44.62,153.2,153.06,44.62]
[1751297337968,1.13692051,153.2,152.94,44.62]
[1751297338165,1.13692051,153.2,152.99,15.75149125]
[1751297338366,2.1228,153.25,153.03,15.75149125]
[1751297338564,15.75149125,153.22,153.04,44.62]
[1751297338762,46.6636,153.26,153.06,15.75149125]
[1751297338961,44.54,153.32,153.04,44.62]
[1751297339167,2624.86,153.5,153.04,44.62]
[1751297339168,1.13653064,153.23,153.04,44.62]
[1751297339462,15.75149125,153.18,153.04,44.62]
[1751297339669,46.18,153.19,152.96,590.58]
[1751297339861,2.1487,153.3,153.02,15.75149125]
[1751297340161,15.75149125,153.27,153.03,49.34]
[1751297340372,19.8,153.48,153.04,51.08]
[1751297340373,4.3496,153.35,153.04,51.08]
[1751297340673,26.0227,153.68,153.04,51.08]
[1751297340674,54.42,153.64,153.04,51.08]
[1751297340974,56.34,153.65,153.36,15.75149125]
[1751297341169,56.34,153.65,153.14,15.75149125]
[1751297341170,649.0687,153.66,153.37,646.92]
[1751297341374,164.4,153.65,153.15,124.0]
[1751297341569,164.4,153.65,153.15,19.8]
[1751297341570,15.75149125,153.38,153.15,19.8]
[1751297341769,15.75149125,153.52,153.31,35.55149125]
[1751297341961,15.75149125,153.52,153.17,589.38]
[1751297341962,15.75149125,153.45,153.17,589.38]
[1751297342168,15.75149125,153.32,153.13,57.96]
[1751297342366,2.2032,153.44,153.14,59.9]
[1751297342567,2.2032,153.44,153.2,15.75149125]
[1751297342776,2.2032,153.44,153.17,59.9]
[1751297343072,15.75149125,153.33,153.17,59.9]
[1751297343281,15.75149125,153.3,153.17,59.9]
[1751297343465,2619.52,153.85,153.17,59.9]
[1751297343669,15.75149125,153.52,153.15,589.38]
[1751297343871,589.38,153.8,153.16,64.34]
[1751297344071,2.1163,153.79,153.17,2.1048]
[1751297344267,2619.52,154.13,153.43,15.75149125]
[1751297344477,2.2032,153.87,153.44,3472.4]
[1751297344669,666.0,153.86,153.45,666.0]
[1751297344872,15.75149125,153.74,153.45,589.38]
[1751297345177,4.3679,153.99,153.52,15.75149125]
[1751297345371,4.3679,153.99,153.54,19.8]
[1751297345581,6.4963,153.9,153.7,6.5045]
[1751297345873,588.7,153.92,153.56,588.7]
[1751297346078,6.5026,153.75,153.54,6.5113]
[1751297346273,6.5026,153.75,153.14,63.005965]
[1751297346274,15.75149125,153.99,153.55,2616.46]
[1751297346577,6.4894,154.06,153.87,6.497]
[1751297346773,588.7,154.05,153.51,588.7]
[1751297347078,6.597,154.27,153.52,588.7]
[1751297347271,19.8,154.07,153.71,15.75149125]
[1751297347576,15.75149125,154.09,153.55,2610.98]
[1751297347876,2.235,154.08,153.57,13.0201]
[1751297348067,15.75149125,153.91,153.58,587.46]
[1751297348267,587.46,153.97,153.58,587.46]
[1751297348468,15.75149125,153.78,153.5,587.46]
[1751297348676,15.75149125,153.57,153.3,587.46]
[1751297348974,587.46,153.7,153.3,587.46]
[1751297349277,2.1305,153.7,153.31,19.8]
[1751297349473,2.1305,153.7,153.38,19.8]
[1751297349675,2.1305,153.7,153.49,15.75149125]
[1751297349980,2.1927,153.77,153.6,15.75149125]
[1751297350181,2.1903,153.93,153.68,15.75149125]
[1751297350380,2.1903,153.93,153.69,587.46]
[1751297350578,15.75149125,153.87,153.7,587.46]
[1751297350777,2.1305,153.92,153.69,586.98]
[1751297351278,15.75149125,153.88,153.69,586.98]
[1751297351473,2.1305,153.92,153.69,586.98]
[1751297351878,26.24568121,153.75,153.52,586.98]
[1751297352176,2.1305,153.92,153.35,2608.86]
[1751297352177,2608.86,153.89,153.48,26.24568121]
[1751297352384,2608.86,153.89,153.44,586.98]
[1751297352385,26.24568121,153.82,153.47,19.8]
[1751297352586,26.24568121,153.77,153.44,586.98]
[1751297352877,26.24568121,153.7,153.47,26.24568121]
[1751297353077,2.2289,153.81,153.57,26.24568121]
[1751297353278,2.1305,153.92,153.73,26.24568121]
[1751297353873,2.1305,153.92,153.72,586.98]
[1751297354084,2.1305,153.92,153.72,613.22568121]
[1751297354477,2.1305,153.92,153.69,26.24568121]
[1751297354874,1.13146814,153.95,153.79,26.24568121]
[1751297355079,6.814e-05,153.95,153.91,26.24568121]
[1751297355276,6.511,154.09,153.88,586.64]
[1751297355583,586.64,154.28,154.0,26.24568121]
[1751297355774,26.24568121,154.23,154.0,26.24568121]
[1751297355975,26.24568121,154.15,153.94,62.0]
[1751297356184,586.64,154.14,153.88,26.24568121]
[1751297356486,2.1612,154.35,153.84,606.44]
[1751297356487,2.1612,154.35,154.1,26.24568121]
[1751297356679,2.1612,154.35,154.19,26.24568121]
[1751297356878,585.88,154.44,154.22,26.24568121]
[1751297357081,26.24568121,154.49,154.26,26.24568121]
[1751297357281,6.511,154.38,153.9,2603.94]
[1751297357477,26.24568121,154.24,153.95,19.8]
[1751297357681,585.88,154.29,153.91,585.88]
[1751297357876,26.24568121,154.11,153.91,585.88]
[1751297358084,26.24568121,154.14,153.91,612.12568121]
[1751297358281,1.12919188,154.27,153.91,585.88]
[1751297358483,26.24568121,154.27,154.04,26.24568121]
[1751297358679,16.2,154.26,154.05,585.88]
[1751297358988,26.24568121,154.25,154.05,585.88]
[1751297359184,26.24568121,154.25,153.86,2.1696]
[1751297359185,16.2,154.26,153.86,2.1696]
[1751297359377,16.2,154.26,153.71,13.0076]
[1751297359378,26.24568121,154.08,153.87,585.88]
[1751297359573,26.24568121,154.04,153.87,585.88]
[1751297359774,726.75,154.25,153.93,19.8]
[1751297359974,26.24568121,154.23,153.97,26.24568121]
[1751297360179,26.24568121,154.15,153.98,585.26]
[1751297360377,26.24568121,154.07,153.94,585.26]
[1751297360581,26.24568121,154.07,153.87,585.26]
[1751297360786,26.24568121,153.99,153.78,585.26]
[1751297361179,26.24568121,153.94,153.78,585.26]
[1751297361379,26.24568121,153.9,153.78,585.26]
[1751297361580,26.24568121,153.9,153.66,2601.18]
[1751297361581,26.24568121,153.86,153.66,585.26]
[1751297361778,26.24568121,153.83,153.66,585.26]
[1751297362183,2.3005,153.97,153.66,585.26]
[1751297362184,26.24568121,153.9,153.66,585.26]
[1751297362383,26.24568121,153.7,153.32,2601.18]
[1751297362585,26.24568121,153.58,153.31,21.9009]
[1751297362792,585.24,153.65,153.31,19.8]
[1751297363086,26.24568121,153.49,153.29,585.24]
[1751297363282,247.1,153.64,153.29,585.24]
[1751297363484,2.3131,153.66,153.4,26.24568121]
[1751297363677,4.4532,153.69,153.41,832.34]
[1751297363876,26.24568121,153.64,153.41,858.58568121]
[1751297364077,5.58665819,153.69,153.41,832.34]
[1751297364283,26.24568121,153.65,153.42,26.24568121]
[1751297364482,26.24568121,153.61,153.41,832.34]
[1751297364684,26.24568121,153.6,153.41,585.24]
[1751297364890,4.4532,153.69,153.42,26.24568121]
[1751297365082,4.4532,153.69,153.44,26.24568121]
[1751297365286,4.4532,153.69,153.48,26.24568121]
[1751297365482,4.4532,153.69,153.48,273.34568121]
[1751297365682,4.4532,153.69,153.48,26.24568121]
[1751297366492,585.52,153.84,153.56,26.24568121]
[1751297366684,26.24568121,153.81,153.57,585.52]
[1751297366887,27.37810665,153.81,153.57,585.52]
[1751297367081,585.52,153.82,153.6,26.24568121]
[1751297367285,2589.12,154.24,153.78,19.8]
[1751297367581,26.24568121,154.23,153.79,3437.2851]
[1751297367784,26.24568121,154.28,153.79,3438.6505]
[1751297368093,585.52,154.39,154.06,26.24568121]
[1751297368287,26.24568121,154.32,154.1,26.24568121]
[1751297368590,26.24568121,154.32,154.11,585.04]
[1751297368890,26.24568121,154.37,154.15,26.24568121]
[1751297369083,26.24568121,154.21,153.83,2600.24]
[1751297369283,26.24568121,154.06,153.83,611.28568121]
[1751297369595,26.24568121,154.18,153.95,26.24568121]
[1751297369787,26.24568121,154.18,153.95,611.28568121]
[1751297370295,26.24568121,154.18,153.95,858.30568121]
[1751297370793,591.6058,154.24,154.03,26.24568121]
[1751297371184,591.6058,154.24,153.95,851.86]
[1751297371185,26.24568121,154.21,154.0,26.24568121]
[1751297371382,26.24568121,154.13,153.95,832.06]
[1751297371585,26.24568121,154.13,152.78,20.09596881]
[1751297371586,17.49,154.25,154.0,26.24568121]
[1751297371789,17.49,154.25,154.19,26.24568121]
[1751297371991,4.29,154.25,154.17,26.24568121]
[1751297372190,4.29,154.25,154.16,584.72]
[1751297372588,26.24568121,154.24,154.09,584.72]
[1751297372789,4.29,154.25,154.09,584.72]
[1751297372993,30.53568121,154.25,154.09,584.72]
[1751297373294,4.29,154.25,154.14,26.24568121]
[1751297373490,4.29,154.25,154.15,246.88]
[1751297374091,6.4819,154.24,154.09,6.4877]
[1751297374297,26.24568121,154.23,154.08,584.72]
[1751297374493,4.29,154.25,154.04,584.72]
[1751297374691,26.24568121,154.35,154.12,26.24568121]
[1751297374888,26.24568121,154.35,154.13,246.88]
[1751297375390,26.24568121,154.44,154.13,246.88]
[1751297375698,4.4927,154.65,154.41,26.24568121]
[1751297375893,26.24568121,154.62,154.42,584.34]
[1751297376090,4.4927,154.65,154.41,584.34]
[1751297376401,246.72,154.77,154.41,584.34]
[1751297376402,6.84428657,155.12,154.41,39.6]
[1751297376601,32.2228,155.14,154.4,610.58568121]
[1751297376602,6.84428657,154.67,154.53,26.24568121]
[1751297376895,2.2317,154.84,154.54,584.34]
[1751297377091,6.84428657,154.69,154.56,26.24568121]
[1751297377289,26.24568121,154.76,154.55,584.34]
[1751297377490,2.261,154.83,154.55,584.34]
[1751297377491,6.84428657,154.67,154.55,584.34]
[1751297377692,26.24568121,154.67,154.47,830.44]
[1751297377892,26.24568121,154.68,154.53,6.4694]
[1751297378089,6.84428657,154.65,154.47,583.72]
[1751297378286,6.84428657,154.59,154.47,583.72]
[1751297378488,26.24568121,154.66,154.47,583.72]
[1751297378689,24.96,154.58,154.47,609.96568121]
[1751297378893,24.96,154.58,154.48,88.24568121]
[1751297379091,2.261,154.83,154.48,6.48]
[1751297379395,5.29,154.57,154.49,830.18]
[1751297380290,5.29,154.57,154.49,583.72]
[1751297380897,5.29,154.57,154.41,583.22]
[1751297381285,26.24568121,154.5,154.35,6.477]
[1751297381491,616.02,154.56,154.27,583.22]
[1751297381689,26.24568121,154.49,154.28,246.26]
[1751297381888,26.24568121,154.53,154.3,26.24568121]
[1751297382498,616.02,154.56,154.28,272.50568121]
[1751297382691,26.24568121,154.55,154.32,26.24568121]
[1751297383093,26.24568121,154.55,154.28,246.26]
[1751297383299,26.24568121,154.46,154.27,583.22]
[1751297383497,616.02,154.56,154.31,26.24568121]
[1751297383805,32.8,154.56,154.39,26.24568121]
[1751297383990,32.8,154.56,154.51,26.24568121]
[1751297384191,26.24568121,154.7,154.52,829.28]
[1751297384402,26.24568121,154.66,154.52,246.2]
[1751297384595,1490.0,155.65,154.53,19.8]
[1751297384902,6.3706,155.16,154.54,246.2]
[1751297385195,6.511,155.05,154.85,26.24568121]
[1751297385397,6.511,155.05,154.84,829.28]
[1751297385995,62.92568121,155.04,154.84,583.08]
[1751297386196,25.2862,155.04,154.84,583.08]
[1751297386403,6.511,155.2,155.03,26.24568121]
[1751297386596,6.511,155.2,155.04,582.4]
[1751297386803,6.511,155.2,155.01,582.4]
[1751297387097,6.511,155.25,153.03,357.0]
[1751297387297,6.511,155.25,154.94,26.24568121]
[1751297387496,26.24568121,155.23,155.01,19.8]
[1751297387696,6.511,155.22,155.02,26.24568121]
[1751297387896,6.511,155.28,155.14,26.24568121]
[1751297388101,2.2054,155.54,155.23,26.24568121]
[1751297388295,152.46038121,155.53,155.24,828.3]
[1751297388593,140.1547,155.53,155.25,582.4]
[1751297388900,6.511,155.52,155.23,582.4]
[1751297389101,13.94,155.53,155.38,26.24568121]
[1751297389403,26.24568121,155.48,155.26,582.4]
[1751297389702,19.8,155.93,155.32,26.24568121]
[1751297389896,6.511,155.77,155.48,26.24568121]
[1751297390096,6.511,155.73,155.44,26.24568121]
[1751297390295,6.511,155.73,155.39,245.52]
[1751297390504,6.511,155.73,155.4,581.5]
[1751297390698,6.511,155.73,155.31,581.5]
[1751297391092,26.24568121,155.66,155.35,26.24568121]
[1751297391292,581.5,155.66,155.35,26.24568121]
[1751297391598,32.75668121,155.74,155.32,245.52]
[1751297391805,26.24568121,155.72,155.44,26.24568121]
[1751297391998,0.42,155.73,155.5,19.8]
[1751297392197,0.42,155.73,155.51,827.02]
[1751297392400,0.42,155.73,155.52,581.5]
[1751297392698,0.42,155.73,155.53,271.76568121]
[1751297392903,2.114,155.97,155.54,606.82568121]
[1751297393098,2.114,155.97,155.74,26.24568121]
[1751297393296,6.511,155.98,155.79,26.24568121]
[1751297393498,6.511,155.98,155.8,580.58]
[1751297393704,6.511,155.89,155.7,19.8]
[1751297393905,6.511,155.89,155.7,580.58]
[1751297394094,587.091,155.95,155.62,580.58]
[1751297394294,26.24568121,155.84,155.62,580.58]
[1751297394495,6.4819,155.94,155.62,580.58]
[1751297394695,26.24568121,155.76,155.54,580.58]
[1751297394905,26.24568121,155.78,155.55,245.14]
[1751297395102,6.4819,155.94,155.54,580.58]
[1751297395305,7.21523395,156.38,155.54,580.58]
[1751297395306,26.24568121,155.97,155.55,245.14]
[1751297395606,26.24568121,155.83,155.54,580.58]
[1751297395903,26.24568121,155.8,155.54,606.82568121]
[1751297396101,579.84,155.85,155.55,244.82]
[1751297396309,579.84,155.87,155.55,244.82]
[1751297396506,579.84,155.87,155.54,580.58]
[1751297396703,579.84,155.87,155.54,600.38]
[1751297397005,26.24568121,155.93,155.68,26.24568121]
[1751297397202,26.24568121,155.93,155.72,26.24568121]
[1751297397506,26.24568121,155.88,155.73,579.84]
[1751297397708,26.24568121,155.88,155.61,2577.12]
[1751297397709,26.24568121,155.84,155.65,579.84]
[1751297397899,26.24568121,155.8,155.64,579.84]
[1751297398100,26.24568121,155.8,155.5,2577.12]
[1751297398101,26.24568121,155.8,155.58,579.84]
[1751297398307,26.24568121,155.64,155.36,2577.12]
[1751297398504,26.24568121,155.7,155.37,579.84]
[1751297398802,26.24568121,155.62,155.38,271.06568121]
[1751297398998,26.24568121,155.58,155.37,579.84]
[1751297399202,6.511,155.61,155.37,579.84]
[1751297399507,32.75668121,155.5,155.29,579.18]
[1751297399805,26.24568121,155.5,155.28,579.18]
[1751297400207,579.18,155.52,155.28,579.18]
[1751297400608,26.24568121,155.62,155.29,19.8]
[1751297400914,19.8,155.64,155.25,26.24568121]
[1751297401106,26.24568121,155.52,155.28,26.24568121]
[1751297401412,6.511,155.55,155.4,26.24568121]
[1751297401609,6.511,155.55,155.42,26.24568121]
[1751297401810,6.511,155.55,155.35,26.24568121]
[1751297402011,6.511,155.55,155.32,579.1]
[1751297402308,6.511,155.55,155.06,12.8947]
[1751297402309,6.511,155.53,155.18,579.1]
[1751297402507,26.24568121,155.36,155.18,579.1]
[1751297403213,6.511,155.81,155.19,19.26]
[1751297403514,2.1008,155.89,155.56,26.24568121]
[1751297403708,2.1008,155.89,155.57,823.62]
[1751297403908,2.1008,155.89,155.58,579.1]
[1751297404109,2.1008,155.89,155.46,2573.82]
[1751297404110,26.24568121,155.85,155.59,823.62]
[1751297404304,2.1008,155.89,155.6,823.62]
[1751297404509,26.24568121,155.85,155.47,12.8607]
[1751297404710,26.24568121,155.81,155.48,823.32]
[1751297405009,26.24568121,155.77,155.54,26.24568121]
[1751297405211,702.8,155.88,155.49,26.24568121]
[1751297405212,26.24568121,155.69,155.49,26.24568121]
[1751297405410,26.24568121,155.65,155.4,578.8]
[1751297405611,578.8,155.67,155.41,26.24568121]
[1751297405808,6.4235,155.64,155.47,6.4302]
[1751297406010,4.3708,155.76,155.46,26.24568121]
[1751297406210,4.3708,155.76,155.42,578.8]
[1751297406411,4.3708,155.76,155.56,26.24568121]
[1751297406714,26.24568121,155.67,155.36,0.9937]
[1751297406915,26.24568121,155.62,155.37,578.8]
[1751297407218,578.8,155.66,155.25,578.8]
[1751297407219,26.24568121,155.5,155.25,578.8]
[1751297407414,2.0772,155.66,155.37,26.24568121]
[1751297407618,26.24568121,155.65,155.41,26.24568121]
[1751297407911,578.64,155.71,155.5,0.19302225]
[1751297408113,26.24568121,155.69,155.51,578.64]
[1751297408307,2.2793,155.76,155.51,578.64]
[1751297408510,19.35,155.96,155.72,26.24568121]
[1751297408706,26.24568121,155.95,155.63,2571.78]
[1751297408908,26.24568121,155.86,155.65,26.24568121]
[1751297409114,578.73,155.96,155.65,26.24568121]
[1751297409313,0.09,155.96,155.73,26.24568121]
[1751297409620,6.511,156.04,155.66,62.0]
[1751297409621,6.511,156.09,155.77,39.06]
[1751297409818,6.511,156.09,155.89,26.24568121]
[1751297410112,6.511,156.09,155.9,578.64]
[1751297410318,26.24568121,156.05,155.85,578.64]
[1751297410506,6.511,156.16,155.85,578.64]
[1751297410706,6.511,156.09,155.89,26.24568121]
[1751297410911,6.511,156.09,155.9,244.32]
[1751297411114,6.511,156.09,155.92,26.24568121]
[1751297411310,26.24568121,156.16,155.96,26.24568121]
[1751297411509,124.0,156.33,155.97,578.16]
[1751297411510,4.3188,156.33,155.97,578.16]
[1751297411819,26.24568121,156.32,156.11,26.24568121]
[1751297412014,26.24568121,156.35,156.12,578.16]
[1751297412215,578.16,156.34,156.0,578.16]
[1751297412517,26.24568121,156.2,155.98,26.24568121]
[1751297412817,26.24568121,156.17,155.91,578.16]
[1751297413014,2.0656,156.33,155.96,26.24568121]
[1751297413213,580.2256,156.33,156.04,26.24568121]
[1751297413412,580.2256,156.33,156.05,578.16]
[1751297413413,6.511,156.32,156.05,578.16]
[1751297413913,0.32,156.34,156.17,26.24568121]
[1751297414220,577.68,156.65,156.2,26.24568121]
[1751297414413,6.511,156.58,156.37,26.24568121]
[1751297414609,577.68,156.65,156.38,577.68]
[1751297414813,577.68,156.65,156.39,577.68]
[1751297415015,6.3842,156.6,156.35,577.68]
[1751297415213,26.24568121,156.67,156.35,577.68]
[1751297415409,6.511,156.69,156.39,26.24568121]
[1751297415616,26.24568121,156.6,156.36,243.92]
[1751297415817,6.511,156.63,156.21,0.9695]
[1751297416012,6.511,156.62,156.31,26.24568121]
[1751297416211,6.511,156.62,156.33,26.24568121]
[1751297416412,26.24568121,156.52,156.34,62.0]
[1751297416611,26.24568121,156.44,156.26,6.3977]
[1751297416811,26.24568121,156.47,156.23,576.92]
[1751297417117,243.6,156.5,156.14,576.92]
[1751297417326,26.24568121,156.38,156.14,820.52]
[1751297417517,0.1,156.61,156.14,820.52]
[1751297417518,0.1,156.61,156.35,26.24568121]
[1751297417719,26.24568121,156.83,156.43,19.8]
[1751297418018,4.321,156.85,156.42,26.24568121]
[1751297418019,4.321,156.85,156.61,26.24568121]
[1751297418325,2.214,156.85,156.69,26.24568121]
[1751297418510,2.214,156.85,156.68,576.92]
[1751297418716,1490.0,157.53,156.45,0.9502]
[1751297418717,26.24568121,156.84,156.45,0.9502]
[1751297419018,2.18,156.84,156.64,26.24568121]
[1751297419217,2.18,156.84,156.62,576.92]
[1751297419413,245.78,156.84,156.49,26.24568121]
[1751297419620,124.0,156.83,156.53,26.24568121]
[1751297419817,2.18,156.84,156.46,62.0]
[1751297420121,12.7563,156.75,156.34,576.12]
[1751297420322,26.24568121,156.64,156.34,576.12]
[1751297420523,0.1,156.63,156.34,576.12]
[1751297420717,0.1,156.63,156.35,243.26]
[1751297421017,576.12,156.95,156.43,19.26]
[1751297421218,26.24568121,156.77,156.45,19.26]
[1751297421427,26.24568121,156.81,156.46,595.92]
[1751297421624,578.3911,156.83,156.47,243.26]
[1751297421920,578.3911,156.83,156.47,262.52]
[1751297422218,576.12,157.0,156.62,26.24568121]
[1751297422418,26.24568121,157.05,156.65,19.26]
[1751297422615,26.24568121,157.02,156.8,26.24568121]
[1751297422817,580.0196,157.07,156.8,575.62]
[1751297423017,26.24568121,156.97,156.73,26.24568121]
[1751297423218,580.0196,157.07,156.67,26.24568121]
[1751297423412,580.0196,157.07,156.42,26.24568121]
[1751297423413,26.24568121,156.82,156.6,575.62]
[1751297423620,2.0668,156.96,156.6,26.24568121]
[1751297423918,2.0668,156.96,156.61,243.04]
[1751297424118,26.24568121,156.93,156.7,26.24568121]
[1751297424324,26.24568121,156.87,156.65,575.62]
[1751297424516,26.24568121,156.92,156.69,26.24568121]
[1751297424717,575.62,156.92,156.7,575.62]
[1751297424917,2.0668,156.96,156.74,26.24568121]
[1751297425117,2.0668,156.96,156.7,575.62]
[1751297425319,4.3996,157.07,156.71,19.26]
[1751297425523,26.24568121,156.89,156.7,575.62]
[1751297425725,6.511,157.05,156.68,243.04]
[1751297425922,26.24568121,156.86,156.65,26.24568121]
[1751297426125,26.24568121,156.84,156.62,575.62]
[1751297426427,2556.12,156.98,156.6,26.24568121]
[1751297426625,2.1885,156.89,156.64,26.24568121]
[1751297426931,2.1885,156.89,156.57,242.84]
[1751297426932,28.43418121,156.89,156.65,601.36568121]
[1751297427129,2.1885,156.89,156.65,575.12]
[1751297427326,2.1885,156.89,156.71,26.24568121]
[1751297427520,6.511,156.94,156.71,288.34568121]
[1751297427717,6.511,156.94,156.71,242.84]
[1751297427918,6.511,156.9,156.65,575.12]
[1751297428122,581.631,156.9,156.65,601.36568121]
[1751297428323,26.24568121,156.83,156.65,575.12]
[1751297428624,26.24568121,156.76,156.6,0.37214]
[1751297428833,26.24568121,156.79,156.6,0.37214]
[1751297429037,2.217,156.82,156.63,26.24568121]
[1751297429238,2.0799,156.97,156.67,26.24568121]
[1751297429431,2.217,156.96,156.71,26.24568121]
[1751297429640,6.511,156.94,156.71,26.24568121]
[1751297429936,6.511,156.91,156.6,0.37214]
[1751297430132,26.24568121,156.77,156.6,0.37214]
[1751297430337,26.24568121,156.69,156.6,0.37214]
[1751297430531,26.24568121,156.68,156.6,0.37214]
[1751297430729,26.24568121,156.68,156.42,593.98]
[1751297430730,26.24568121,156.64,156.42,574.72]
[1751297430936,26.24568121,156.59,156.37,26.24568121]
[1751297431139,2.2359,156.63,156.41,26.24568121]
[1751297431443,574.72,156.67,156.43,26.24568121]
[1751297431634,6.511,156.74,156.55,26.24568121]
[1751297431835,4.1196,156.76,156.55,601.04568121]